[Event "European Women-ch 2023"]
[Site "Petrovac"]
[Date "2023.03.19"]
[Round "2.3"]
[White "Mammadova, Gulnar"]
[Black "Rudzinska, Michalina"]
[Result "1-0"]
[ECO "D32"]
[WhiteElo "2358"]
[BlackElo "2212"]
[Annotator "TA"]
[PlyCount "81"]
[EventDate "2023.03.15"]
[EventType "swiss"]
[EventCountry "MNE"]
[SourceTitle "playchess.com"]
[Source "ChessBase"]
[SourceQuality "1"]
[TimeControl "40/5400+30:1800+30"]

{[%evp 12,81,-18,-9,0,-8,-10,-3,-14,-30,0,0,0,-51,-43,-25,-37,-50,-42,-53,0,0,0,-17,-14,-28,-14,-29,-19,-48,-18,-8,-14,-13,-6,-32,0,0,0,-10,0,0,0,0,0,-2,0,-28,8,0,0,0,0,0,60,67,75,46,52,59,56,37,86,77,267,243,29989,29987,29987,29988,29988,-217]} 1. c4 {[%emt 0:00:03]} e6 {[%emt 0:00:15]} 2. Nc3 {[%emt 0:00:14]} d5 {[%emt 0:00:33]} 3. d4 {[%emt 0:00:32]} c5 {[%emt 0:01:02]} 4. cxd5 {[%emt 0:03:20]} cxd4 {[%emt 0:00:21]} 5. Qxd4 {[%emt 0:09:05]} Nc6 {[%emt 0:00:26]} 6. Qa4 {[%emt 0:01:49]} exd5 {[%emt 0:00:11]} 7. e3 {[%emt 0:04:14]} Nf6 {[%emt 0:23:43] D32: Tarrasch Defence: Sidelines and lines without g3.} 8. Nf3 {[%emt 0:01:11]} Bd6 {[%emt 0:05:59] [#]} 9. Nb5 $146 {[%emt 0:07:04]} ({Predecessor:} 9. Be2 O-O 10. O-O Qe7 11. Rd1 Rd8 12. Bd2 a6 13. Rac1 b5 14. Qc2 Bb7 15. a3 {½-½ Rosenthal,D (2387)-Rabiega,R (2490) EU-chT Seniors 50 2022 (3.1)}) 9... Bc5 {[%emt 0:12:22] The position is equal.} 10. Nbd4 {[%emt 0:06:41]} Bd7 {[%emt 0:00:51] [#] And now ...Nxd4 would win.} 11. Nxc6 {[%emt 0:02:32]} bxc6 {[%emt 0:04:53]} 12. Ne5 {[%emt 0:08:01]} ({Better is} 12. Qc2 $11 Ne4 13. a3) 12... Qe7 $15 {[%emt 0:04:20]} 13. Nxd7 {[%emt 0:07:17]} Bb4+ {[%emt 0:02:00]} 14. Bd2 {[%emt 0:01:46]} Bxd2+ {[%emt 0:00:08]} 15. Kxd2 {[%emt 0:00:03] Nxf6+ is the strong threat.} Ne4+ {[%emt 0:03:24]} (15... Qxd7 $15 16. Bd3 Ne4+ 17. Bxe4 dxe4+ 18. Ke1 (18. Qd4 Qf5 $17) 18... O-O) 16. Ke1 $11 {[%emt 0:03:45] Nb6 would be deadly.} Qxd7 {[%emt 0:00:58]} 17. Bd3 {[%emt 0:01:36]} Nc5 {[%emt 0:05:38][%csl LRa4,LRd3]} 18. Qa3 {[%emt 0:01:30]} Nxd3+ {[%emt 0:00:10]} 19. Qxd3 {[%emt 0:00:03]} O-O {[%emt 0:00:15]} 20. Kf1 {[%emt 0:04:03]} c5 {[%emt 0:05:27]} 21. h4 {[%emt 0:04:06][%cal Bh2h4,Bh4h5,Bh5h6][%mdl 32]} Rfd8 {[%emt 0:01:21]} 22. Rh3 {[%emt 0:00:50]} a5 {[%emt 0:03:57]} 23. h5 {[%emt 0:03:03]} Rab8 {[%emt 0:03:36]} 24. b3 {[%emt 0:03:02]} a4 {[%emt 0:02:33]} 25. bxa4 {[%emt 0:05:25]} Qxa4 {[%emt 0:01:41]} 26. h6 {[%emt 0:00:13]} g6 {[%emt 0:00:20]} 27. Kg1 {[%emt 0:03:07]} Qb4 {[%emt 0:01:42] Inhibits Qc3.} 28. Rc1 {[%emt 0:01:19]} Ra8 {[%emt 0:05:40]} 29. Rb1 {[%emt 0:02:14]} Ra3 {[%emt 0:01:01]} (29... Qe4 {simplifies} 30. Qxe4 dxe4 31. f3 Re8) 30. Qc2 $40 {[%emt 0:05:01][%mdl 128] White mounts an attack.} (30. Rxb4 {simplifies} Rxd3 31. Rb7 Ra3 32. Rf3) 30... Rc3 {[%emt 0:04:04]} 31. Qd1 {[%emt 0:00:19]} Qe4 {[%emt 0:00:25]} 32. Rf3 {[%emt 0:01:02]} Qd3 {[%emt 0:03:07]} (32... Rd3 $11 33. Qc1 Qe7) 33. Qxd3 $14 {[%emt 0:00:45]} Rxd3 {[%emt 0:00:05][%mdl 4096] Endgame KRR-KRR} 34. Rb7 {[%emt 0:00:08]} (34. Rf6 $5) 34... f5 {[%emt 0:01:22]} 35. Rg7+ {[%emt 0:00:34]} Kh8 {[%emt 0:00:09]} 36. Rc7 {[%emt 0:00:17]} c4 {[%emt 0:01:47]} (36... d4 $14 {feels stronger.} 37. exd4 (37. Rxc5 Rd1+ 38. Kh2 d3 $14) 37... Rxf3 38. gxf3 cxd4) 37. g4 $16 {[%emt 0:01:29][%cal Bg2g4,Bg4f5,Bf5g6][%mdl 32]} Rf8 {[%emt 0:02:34] This costs Black the game.} (37... fxg4 38. Rff7 Rd1+ 39. Kg2 Kg8 40. Rxh7) (37... d4 $16) 38. gxf5 $18 {[%emt 0:00:40]} Kg8 $2 {[%emt 0:00:19] [#]} (38... gxf5 $18 39. Rxf5 Rd1+ 40. Kg2 Rg8+ 41. Kf3 Rh1 42. Rxd5 Rf8+ 43. Ke4 Rxh6) 39. fxg6 $1 {[%emt 0:04:49] White mates.} Rxf3 {[%emt 0:00:07]} 40. Rc8+ {[%emt 0:00:00]} (40. Rxh7 $2 {perishes.} Rf6 41. Rg7+ Kf8 $19) 40... Rf8 {[%emt 0:00:00]} 41. Rxf8+ {[%emt 0:00:24][%mdl 32768] Weighted Error Value: White=0.08 (flawless) /Black=0.37. Loss on time!?} ({Not} 41. gxh7+ Kxh7 42. Rxf8 Kxh6 $11) 1-0

[Event "European Women-ch 2023"]
[Site "Petrovac"]
[Date "2023.03.19"]
[Round "2.4"]
[White "Lazarne Vajda, Szidonia"]
[Black "Bulmaga, Irina"]
[Result "0-1"]
[ECO "E04"]
[WhiteElo "2294"]
[BlackElo "2438"]
[Annotator "TA"]
[PlyCount "46"]
[EventDate "2023.03.15"]
[EventType "swiss"]
[EventCountry "MNE"]
[SourceTitle "playchess.com"]
[Source "ChessBase"]
[SourceQuality "1"]
[TimeControl "40/5400+30:1800+30"]

{[%evp 11,46,0,0,0,0,-5,-10,-12,-4,-12,-17,-15,-29,-38,-53,-47,-32,-63,-71,-79,-86,-124,-141,-195,-197,-231,-230,-343,-353,-383,-368,-388,-367,-362,-364,-369,-358]} 1. d4 {[%emt 0:00:04]} Nf6 {[%emt 0:00:10]} 2. c4 {[%emt 0:00:24]} e6 {[%emt 0:00:08]} 3. g3 {[%emt 0:00:39]} d5 {[%emt 0:00:39]} 4. Bg2 {[%emt 0:00:24]} dxc4 {[%emt 0:00:38]} 5. Nf3 {[%emt 0:03:17]} a6 {[%emt 0:00:33]} 6. a4 {[%emt 0:18:45]} c5 {[%emt 0:03:25]} 7. Na3 {[%emt 0:16:33] E04: Open Catalan: 5 Nf3.} cxd4 {[%emt 0:09:07]} 8. Nxc4 {[%emt 0:00:16]} Nc6 {[%emt 0:03:19]} 9. O-O {[%emt 0:02:13] The position is equal.} Bc5 {[%emt 0:00:55]} 10. Nfe5 {[%emt 0:18:41]} Nxe5 {[%emt 0:05:21]} 11. Nxe5 {[%emt 0:00:05]} O-O {[%emt 0:02:34]} 12. Qc2 {[%emt 0:13:07] [#]} Bd6 $146 {[%emt 0:05:33]} ({Predecessor:} 12... Ba7 13. Rd1 Nd5 14. Qc4 Qd6 15. Nf3 e5 16. Ng5 Be6 17. Qd3 f5 18. Bd2 e4 {1-0 Golombek,H-Euwe,M Paignton Premier 1951 (1)}) 13. Nc4 {[%emt 0:00:19]} Bc7 {[%emt 0:01:16]} 14. Rd1 {[%emt 0:05:21]} e5 {[%emt 0:02:10] Repels Bf4} 15. e3 {[%emt 0:00:09]} Bg4 {[%emt 0:01:29]} 16. f3 {[%emt 0:01:02]} Be6 {[%emt 0:00:35][%cal Bg4e6,Be6d5,Bd5a8][%mdl 32]} 17. exd4 {[%emt 0:00:36]} (17. f4 $17 exf4 18. gxf4 (18. Rxd4 $2 Qc8 $19)) 17... exd4 $19 {[%emt 0:03:31]} 18. Be3 {[%emt 0:02:54]} b5 {[%emt 0:02:50]} ({And not} 18... Bxc4 19. Qxc4 Bb6 20. Bxd4 $11) 19. Rxd4 {[%emt 0:06:58]} (19. Na3 {is the only way for White.} Bb6 20. Bf2) 19... Nd5 {[%emt 0:05:39]} 20. Rxd5 {[%emt 0:02:53] Black is winning.} Bxd5 {[%emt 0:00:40]} (20... Qxd5 $2 {loses.} 21. Na3 Rac8 22. f4 $19) 21. axb5 {[%emt 0:00:09]} axb5 {[%emt 0:00:58]} 22. Rxa8 {[%emt 0:00:20]} Bxa8 {[%emt 0:00:28]} (22... Qxa8 $2 {too greedy.} 23. Nd2 Be5 24. Bf1 $19) 23. Na3 {[%emt 0:00:42]} Bb6 {[%emt 0:04:49] Weighted Error Value: White=0.21 (precise) /Black=0.01 (flawless)} 0-1

[Event "European Women-ch 2023"]
[Site "Petrovac"]
[Date "2023.03.19"]
[Round "2.4"]
[White "Olde, Margareth"]
[Black "Ismayil, Malak"]
[Result "1-0"]
[ECO "E04"]
[WhiteElo "2234"]
[BlackElo "2011"]
[Annotator "TA"]
[PlyCount "155"]
[EventDate "2023.03.15"]
[EventType "swiss"]
[EventCountry "MNE"]
[SourceTitle "playchess.com"]
[Source "ChessBase"]
[SourceQuality "1"]
[TimeControl "40/5400+30:1800+30"]

{[%evp 16,155,15,6,53,49,82,76,75,75,117,106,103,92,86,54,49,47,41,14,27,22,20,16,29,14,23,23,29,24,31,7,6,0,0,0,0,0,0,-9,0,-9,-14,-17,-12,-11,-10,-47,-38,-28,-41,-34,-35,-83,-78,-106,-96,-113,-94,-143,-16,-387,-4,0,-12,-2,413,373,410,404,348,361,385,364,476,475,506,505,504,471,441,338,1219,1245,1186,1114,1096,1050,1964,1691,1153,439,439,370,377,379,367,364,466,455,465,449,494,484,553,548,588,587,926,555,895,718,1175,841,833,826,801,787,960,874,991,999,29971,1091,1075,983,922,895,4141,2222,29970,29972,29991,29992,29992,29964,5359,0,29992,29992,29992,29993]} 1. d4 {[%emt 0:00:02]} Nf6 {[%emt 0:00:24]} 2. c4 {[%emt 0:00:49]} e6 {[%emt 0:00:07]} 3. Nf3 {[%emt 0:00:10]} d5 {[%emt 0:00:33]} 4. g3 {[%emt 0:00:18]} dxc4 {[%emt 0:00:28]} 5. Bg2 {[%emt 0:00:11]} Nc6 {[%emt 0:00:17]} 6. Qa4 {[%emt 0:02:13]} Bb4+ {[%emt 0:03:48]} 7. Bd2 {[%emt 0:03:23]} Nd5 {[%emt 0:04:53]} 8. Bxb4 {[%emt 0:04:45]} Ndxb4 {[%emt 0:00:08]} 9. Ne5 {[%emt 0:02:18][%cal Re5c6]} Bd7 {[%emt 0:06:20] is the legacy move (9...0-0). E04: Open Catalan: 5 Nf3.} (9... Rb8 $11) 10. O-O $1 $14 {[%emt 0:15:33]} Rb8 {[%emt 0:13:49]} (10... Nxd4 $2 11. Qxb4 Bb5 12. Na3 $18 (12. Bxb7 Rb8 $16)) 11. Nxc6 $1 {[%emt 0:05:39]} Nxc6 {[%emt 0:08:50] White is better.} 12. Qxc4 {[%emt 0:00:16] [#]} e5 $146 {[%emt 0:07:03]} ({Predecessor:} 12... O-O 13. Nc3 e5 14. d5 Nd4 15. e3 Nf5 16. Qd3 Nd6 17. f4 Qe7 18. Rac1 Rfe8 {1-0 Vetokhin,S (2261)-Sarkar,J (2365) Titled Tuesday intern op 30th Mar blitz 2021 (1)}) 13. dxe5 {[%emt 0:05:05] White is more active.} Nxe5 {[%emt 0:01:02]} 14. Qc3 {[%emt 0:06:55]} f6 {[%emt 0:02:54]} 15. Rd1 {[%emt 0:05:20]} O-O {[%emt 0:02:02]} 16. f4 {[%emt 0:03:53]} Nf7 {[%emt 0:00:24]} 17. Na3 {[%emt 0:02:49]} Qc8 {[%emt 0:00:38]} 18. Rac1 {[%emt 0:01:11]} c6 {[%emt 0:00:12]} 19. Nc4 {[%emt 0:03:25]} Bh3 {[%emt 0:04:33]} 20. Bh1 {[%emt 0:08:11]} Qe6 {[%emt 0:07:26]} 21. e4 {[%emt 0:03:19]} Rfd8 {[%emt 0:01:41]} 22. Bf3 {[%emt 0:01:02]} Qe7 {[%emt 0:00:41]} 23. Qe3 {[%emt 0:05:05]} Be6 {[%emt 0:02:24]} 24. Qxa7 {[%emt 0:04:40]} Ra8 {[%emt 0:06:07]} 25. Rxd8+ {[%emt 0:01:06]} Qxd8 {[%emt 0:00:14]} 26. Qc5 {[%emt 0:06:41]} Qd3 {[%emt 0:06:05]} 27. Bg2 {[%emt 0:01:07]} Rxa2 {[%emt 0:02:16]} 28. Qe7 {[%emt 0:01:40][%cal Re7e8]} Qd4+ {[%emt 0:00:55]} (28... Qd7 {simplifies} 29. Qxd7 Bxd7 30. Rc2 Be6) 29. Kh1 {[%emt 0:00:18][%cal Re7e8]} Qd7 $36 {[%emt 0:00:12][%mdl 2048] Prevents Qe8+. Black is more active.} 30. Qxd7 {[%emt 0:01:09]} Bxd7 {[%emt 0:00:00][%cal Be6d7,Bd7e8,Be8g6][%mdl 32]} 31. Bf1 {[%emt 0:01:55]} b5 {[%emt 0:07:57]} 32. Nb6 {[%emt 0:03:19]} Be8 {[%emt 0:00:01]} 33. b3 {[%emt 0:01:44]} Ra3 {[%emt 0:05:28]} 34. Rc3 {[%emt 0:00:44]} (34. Rb1 $15 {feels stronger.}) 34... Nd6 $1 $17 {[%emt 0:02:25]} 35. e5 {[%emt 0:00:42]} fxe5 {[%emt 0:00:41]} 36. fxe5 {[%emt 0:00:04]} Ne4 {[%emt 0:00:15]} 37. Re3 {[%emt 0:01:08]} (37. Rf3 $142) 37... Bg6 {[%emt 0:01:21]} (37... Nd2 $17 38. Bh3 c5 39. Be6+ Kf8) 38. Bh3 {[%emt 0:00:36][%mdl 8192]} (38. e6 $11 {and White is okay.}) 38... Ng5 $2 {[%emt 0:03:43]} (38... Nf2+ $1 $19 39. Kg2 Nxh3) 39. Bd7 {[%emt 0:00:36]} Be4+ {[%emt 0:00:30]} 40. Kg1 {[%emt 0:00:00] Strongly threatening e6.} Bf3 $2 {[%emt 0:00:00][%mdl 8192] White stays focused until the end.} (40... Nf3+ $11 {and Black stays safe.} 41. Kf1 Ra1+ 42. Ke2 Nd4+ 43. Kd2 Bg6) 41. h4 $1 $18 {[%emt 0:08:39]} Ra1+ {[%emt 0:01:09]} 42. Kf2 {[%emt 0:00:13]} Ra2+ {[%emt 0:00:03]} 43. Ke1 {[%emt 0:00:13]} Ra1+ {[%emt 0:00:13] [#]} 44. Kd2 $1 {[%emt 0:00:18]} Ne4+ {[%emt 0:00:26]} 45. Kc2 {[%emt 0:00:16]} Ra2+ {[%emt 0:04:51]} 46. Kc1 {[%emt 0:00:49]} Ra1+ {[%emt 0:05:39]} 47. Kb2 {[%emt 0:01:09]} Rf1 {[%emt 0:00:06]} 48. e6 {[%emt 0:03:39]} b4 $2 {[%emt 0:01:20]} (48... Nf6 49. e7 Bh5 50. e8=Q+ Nxe8 51. Bxe8 Bxe8) 49. e7 {[%emt 0:05:14][%cal Re7e8]} ({Weaker is} 49. Bxc6 Rf2+ 50. Kc1 Rf1+ 51. Kc2 Rf2+ 52. Kd3 Rd2+ 53. Kc4 Rc2+ 54. Kxb4 Rxc6 $16) 49... Rf2+ {[%emt 0:00:01] [#]} 50. Kc1 $1 {[%emt 0:00:13][%cal Re7e8]} Rf1+ {[%emt 0:02:06]} 51. Kc2 {[%emt 0:00:07][%cal Re7e8]} Bd1+ {[%emt 0:02:04]} 52. Kb2 {[%emt 0:01:58]} Nf6 {[%emt 0:00:20]} 53. e8=Q+ {[%emt 0:00:41]} (53. Be6+ $142 Kh8 54. Bf7) 53... Nxe8 {[%emt 0:00:04]} 54. Bxe8 {[%emt 0:00:22]} Rf2+ {[%emt 0:01:14]} 55. Kc1 {[%emt 0:00:20]} Bf3 {[%emt 0:00:52]} 56. Bd7 {[%emt 0:01:18]} h5 {[%emt 0:00:29]} 57. Be6+ {[%emt 0:00:57]} Kh7 {[%emt 0:02:21]} 58. Nd7 {[%emt 0:00:45] White wants to mate with Bf5+.} Bg2 {[%emt 0:01:31]} 59. Ne5 {[%emt 0:00:56]} Rf6 {[%emt 0:00:21]} 60. Nd3 {[%emt 0:01:13]} Rf1+ {[%emt 0:00:19]} 61. Kd2 {[%emt 0:00:15]} c5 {[%emt 0:00:44]} 62. Nxc5 {[%emt 0:00:30]} Bf3 {[%emt 0:00:12]} 63. Nd3 {[%emt 0:00:39]} Rd1+ {[%emt 0:00:06]} 64. Kc2 {[%emt 0:00:04]} Rf1 {[%emt 0:00:05]} 65. Nxb4 {[%emt 0:00:23]} Bd1+ {[%emt 0:00:04]} 66. Kd2 {[%emt 0:00:25]} Bf3 {[%emt 0:00:06]} 67. Nd3 {[%emt 0:00:31]} Bc6 {[%emt 0:00:09]} 68. Nf4 {[%emt 0:00:28]} g6 {[%emt 0:00:04]} 69. Rc3 {[%emt 0:01:42]} (69. Bc4 $142 Rf2+ 70. Ke1 Rxf4 71. Re7+ Rf7 72. Bxf7 Kg7 73. Rc7 Bb5 74. Bc4+ Kf6 75. Bxb5) 69... Be4 {[%emt 0:00:07]} 70. b4 {[%emt 0:00:51][%cal Bb3b4,Bb4b5,Bb5b6,Bb6b7][%mdl 32]} Kg7 {[%emt 0:00:34]} 71. Bd5 {[%emt 0:01:42]} Bf5 {[%emt 0:00:01]} 72. b5 {[%emt 0:00:34] b6 would kill now.} Kf6 {[%emt 0:00:04]} 73. b6 {[%emt 0:00:18]} Ke5 {[%emt 0:00:02]} 74. b7 {[%emt 0:00:17]} Rf2+ {[%emt 0:00:04]} 75. Kc1 {[%emt 0:00:20]} Rf1+ {[%emt 0:00:02]} 76. Kd2 {[%emt 0:00:25]} Rf2+ $1 {[%emt 0:00:06]} 77. Ke1 {[%emt 0:00:04]} Rb2 {[%emt 0:00:08]} 78. Rb3 {[%emt 0:00:07] Weighted Error Value: White=0.33/Black=0.45} 1-0

[Event "European Women-ch 2023"]
[Site "Petrovac"]
[Date "2023.03.19"]
[Round "2.4"]
[White "Gajcin, Marina"]
[Black "Tsolakidou, Stavroula"]
[Result "0-1"]
[ECO "C55"]
[WhiteElo "2215"]
[BlackElo "2358"]
[Annotator "TA"]
[PlyCount "128"]
[EventDate "2023.03.15"]
[EventType "swiss"]
[EventCountry "MNE"]
[SourceTitle "playchess.com"]
[Source "ChessBase"]
[SourceQuality "1"]
[TimeControl "40/5400+30:1800+30"]

{[%evp 11,128,8,35,27,22,21,29,31,35,14,17,22,14,6,0,0,0,-24,-11,-23,-18,-25,-8,-27,-25,-22,0,-37,-35,-96,-27,-27,0,-16,-18,-27,-35,-25,-28,-39,-44,-100,-111,-97,-19,-12,-12,-12,0,0,0,0,0,0,0,0,0,-205,-200,-227,-206,-218,-208,-209,-188,-193,0,0,0,-65,-65,-157,-78,-110,-110,-361,-352,-1034,-63,-89,-74,-66,-59,-59,-59,-59,-59,-59,-59,-128,-111,-67,-128,-128,-128,-128,-52,-1009,-234,-1014,-1004,-805,-818,-1034,-1025,-927,-798,-772,-709,-2502,-3078,-29967,-29967,-29972,-29972,-29982,-29983,-29983,-29983]} 1. e4 {[%emt 0:00:03]} e5 {[%emt 0:00:07]} 2. Nf3 {[%emt 0:00:32]} Nc6 {[%emt 0:00:07]} 3. Bc4 {[%emt 0:00:34]} Nf6 {[%emt 0:00:15]} 4. d3 {[%emt 0:00:13]} h6 {[%emt 0:00:15]} 5. Nc3 {[%emt 0:04:58]} d6 {[%emt 0:01:03]} 6. h3 {[%emt 0:10:57]} g6 {[%emt 0:02:05]} (6... Na5 $5) 7. a3 {[%emt 0:01:46] C55: Two Knights: 4 d3, 4 d4 exd4 5 e5 and Max Lange Attack.} Bg7 {[%emt 0:05:25]} 8. Be3 {[%emt 0:03:09]} Be6 {[%emt 0:02:14]} 9. Bxe6 {[%emt 0:07:11] White has an edge.} fxe6 {[%emt 0:00:22]} 10. d4 {[%emt 0:11:36]} exd4 {[%emt 0:04:07]} 11. Nxd4 {[%emt 0:05:11]} Qd7 {[%emt 0:00:27]} 12. O-O {[%emt 0:05:47]} O-O {[%emt 0:04:35] [#]} 13. Nxc6 $146 {[%emt 0:04:39]} ({Predecessor:} 13. f4 Nxd4 14. Bxd4 Nh5 15. Bxg7 Qxg7 16. Qg4 Rae8 17. g3 Nf6 18. Qf3 e5 19. f5 gxf5 20. exf5 {0-1 Fernandez,D (2496)-Wall,T (2309) London Wood Green 2022 (2)}) 13... Qxc6 {[%emt 0:00:14]} 14. Qd3 {[%emt 0:00:48][%cal Oe4e5]} Nd7 {[%emt 0:04:45]} 15. f4 {[%emt 0:21:44]} Nc5 {[%emt 0:17:10]} 16. Bxc5 {[%emt 0:03:12]} Qxc5+ {[%emt 0:02:16]} 17. Kh1 {[%emt 0:00:04]} Bxc3 {[%emt 0:16:56]} 18. bxc3 {[%emt 0:00:03]} Rf7 {[%emt 0:01:08]} 19. Rf3 {[%emt 0:00:48]} (19. Rae1 $5 {[%cal Re4e5]}) 19... Raf8 {[%emt 0:00:51]} 20. Raf1 {[%emt 0:03:02]} (20. Rb1 $15) 20... Kh7 {[%emt 0:10:09]} (20... Qxa3 $17 21. Qc4 Re7) 21. c4 $11 {[%emt 0:00:16]} c6 {[%emt 0:03:37]} 22. f5 {[%emt 0:03:16]} exf5 {[%emt 0:01:33]} 23. exf5 {[%emt 0:00:11]} Rxf5 {[%emt 0:00:41]} 24. Rxf5 {[%emt 0:01:51]} Rxf5 {[%emt 0:00:06]} 25. Rxf5 {[%emt 0:06:31]} gxf5 {[%emt 0:00:05][%mdl 4096] Endgame KQ-KQ} 26. g4 {[%emt 0:01:13]} (26. Qc3 $15) 26... Kg7 $17 {[%emt 0:03:33]} 27. gxf5 {[%emt 0:00:28]} Kf6 {[%emt 0:00:14]} (27... Qe5 $1 $17 28. Kg2 Kf7) 28. Qd2 $1 $11 {[%emt 0:02:21]} Kxf5 {[%emt 0:01:12]} 29. Qxh6 {[%emt 0:00:12]} Qxa3 {[%emt 0:01:00]} 30. Qh5+ {[%emt 0:01:50]} Kf4 {[%emt 0:02:07] Active counter play!} 31. Qg4+ {[%emt 0:00:20]} Ke5 {[%emt 0:00:06]} 32. Qg7+ {[%emt 0:00:07]} Ke6 {[%emt 0:00:55]} 33. Qg4+ {[%emt 0:00:28]} Ke7 {[%emt 0:00:49]} 34. Qe4+ $2 {[%emt 0:00:41]} (34. Qg7+ $11 Kd8 35. Qg5+ Kc8 36. Qg4+ Kd8 37. Qg8+ Kc7 38. Qg7+ Kb6 39. Qd4+ Ka6 40. Kg2) 34... Kd8 $1 $19 {[%emt 0:00:33]} 35. Kg2 {[%emt 0:01:05]} Qc3 {[%emt 0:01:44]} 36. h4 {[%emt 0:00:30]} a5 {[%emt 0:01:35] White must now prevent ...a4.} 37. h5 {[%emt 0:00:36]} Qg7+ {[%emt 0:07:38]} 38. Kh3 {[%emt 0:00:09]} Kc7 $2 {[%emt 0:06:14]} (38... Qg5 $1 $19 {[%cal Rg5h5]} 39. Qh7 a4) 39. Qg6 $11 {[%emt 0:00:58]} Qc3+ {[%emt 0:00:53]} 40. Qd3 {[%emt 0:00:00]} (40. Qg3 $1 $11 Qh8 41. Kh4) 40... Qh8 $15 {[%emt 0:00:00]} 41. Qf5 {[%emt 0:20:44]} (41. Qg6 $1 $15) 41... Kb6 {[%emt 0:03:48]} (41... a4 $142 {...Qc3+ would be deadly.} 42. Qa5+ Kd7) 42. Qf2+ {[%emt 0:05:18]} c5 $1 {[%emt 0:03:32]} 43. Qf3 {[%emt 0:01:04][%mdl 8192]} (43. Kh4 $17 {was forced.}) 43... a4 $19 {[%emt 0:00:44]} 44. Qd5 $2 {[%emt 0:01:21]} (44. Kg3) 44... Qe5 $2 {[%emt 0:09:22]} (44... Ka7 $19 45. Qd3 Qxh5+ 46. Kg3 Qe5+ 47. Kg2 Qd4) 45. Qxe5 $15 {[%emt 0:04:28]} dxe5 {[%emt 0:00:05] KP-KP} 46. h6 {[%emt 0:00:02] Intending h7 and mate.} a3 {[%emt 0:00:04]} 47. h7 {[%emt 0:00:01]} a2 {[%emt 0:00:03]} 48. h8=Q {[%emt 0:00:03]} a1=Q {[%emt 0:00:06] ( -> ...Qh1+). KQ-KQ} (48... a1=B 49. Qd8+ Kc6 50. Qd5+ Kc7 51. Qxc5+ Kb8 52. Qf8+ Kc7 53. Qa3 $18) 49. Qd8+ $1 {[%emt 0:01:50]} Ka7 {[%emt 0:00:06]} 50. Qd3 {[%emt 0:00:33] Against Qc3} ({White should try} 50. Kg3 $1 $15) 50... Qd4 $17 {[%emt 0:08:25]} 51. Qa3+ {[%emt 0:00:05]} Kb8 {[%emt 0:00:09]} 52. Qb3 {[%emt 0:00:41]} Kc7 {[%emt 0:00:15]} 53. Kg2 {[%emt 0:00:23]} Qf4 {[%emt 0:00:41]} ({Better is} 53... b6 $17 {Threatens to win with ...e4.} 54. Kf3 Qf4+ 55. Ke2 e4) 54. Qb5 $2 {[%emt 0:01:01][%mdl 8192] [#]} (54. Qd3 $15) 54... Qd2+ $1 $19 {[%emt 0:01:41]} 55. Kf3 $2 {[%emt 0:00:14] [#]} (55. Kg3 Qb4 56. Qe8 Qc3+ 57. Kf2 Qxc2+ 58. Kg3 Qd3+ 59. Kh2) 55... Qb4 $1 {[%emt 0:01:43] And now ...Qxb5 would win.} ({Stronger than} 55... Qxc2 56. Qxc5+ Kd8 57. Qd6+ Kc8 58. Qe6+ Kd8 59. Qd6+ Kc8 60. Qe6+ Kd8 61. Qd6+ $11) 56. Qe8 {[%emt 0:00:36]} Qc3+ {[%emt 0:00:05]} ({Worse is} 56... Qxc4 57. Qxe5+ Kd7 58. Qg7+ Kc6 59. Qf6+ Kd7 60. Qf5+ Kd6 61. Qf8+ Kc7 62. Qg7+ Kc6 63. Qf6+ Kd7 64. Qg7+ Kc6 $17) 57. Kf2 {[%emt 0:00:40]} Qxc2+ {[%emt 0:00:06]} ({And not} 57... Qxc4 58. Qxe5+ Kb6 59. Qf5 $17) 58. Ke3 {[%emt 0:00:13]} Qc3+ {[%emt 0:00:39]} 59. Kf2 {[%emt 0:00:13]} Qd4+ {[%emt 0:00:53]} 60. Ke1 {[%emt 0:00:02]} e4 {[%emt 0:00:37]} 61. Qf7+ {[%emt 0:01:31]} Kb6 {[%emt 0:00:27] Black mates.} 62. Qe6+ {[%emt 0:00:31]} Ka5 {[%emt 0:00:17]} 63. Qf7 {[%emt 0:00:30]} Qe3+ {[%emt 0:00:12]} 64. Kd1 {[%emt 0:00:03]} Qf3+ {[%emt 0:00:04] Weighted Error Value: White=0.78/Black=0.25 (precise)} 0-1